[Event "*** Titled Tuesday Blitz"]
[Site "Chess.com"]
[Date "2020.04.28"]
[Round "9"]
[White "MPGM"]
[Black "onnoelgersma"]
[Result "0-1"]
[WhiteElo "2480"]
[BlackElo "2308"]
[TimeControl "180+1"]
[EndTime "11:47:52 PDT"]
[Termination "onnoelgersma won by resignation"]

1. e3 {[%clk 0:03:00.9]} 1... Nf6 {[%clk 0:02:59.7]} 2. Nf3 {[%clk 0:02:51.1]}
2... d5 {[%clk 0:02:57.1]} 3. c4 {[%clk 0:02:50.3]} 3... e6 {[%clk 0:02:54.7]}
4. Nc3 {[%clk 0:02:47.2]} 4... b6 {[%clk 0:02:42.7]} 5. b3 {[%clk 0:02:43.4]}
5... Bb7 {[%clk 0:02:41.4]} 6. cxd5 {[%clk 0:02:41.9]} 6... exd5 {[%clk
0:02:40.7]} 7. d4 {[%clk 0:02:41.2]} 7... Bd6 {[%clk 0:02:40.6]} 8. Bd3 {[%clk
0:02:40.7]} 8... O-O {[%clk 0:02:40.7]} 9. Bb2 {[%clk 0:02:40.5]} 9... Nbd7
{[%clk 0:02:39.8]} 10. O-O {[%clk 0:02:39.8]} 10... a6 {[%clk 0:02:39.9]} 11.
Rc1 {[%clk 0:02:36.7]} 11... Re8 {[%clk 0:02:39.9]} 12. Ne2 {[%clk 0:02:32.5]}
12... Ne4 {[%clk 0:02:38.3]} 13. Ng3 {[%clk 0:02:30.4]} 13... Qf6 {[%clk
0:02:15.5]} 14. Qc2 {[%clk 0:02:23.1]} 14... Nxg3 {[%clk 0:02:09.1]} 15. hxg3
{[%clk 0:02:22.2]} 15... Qh6 {[%clk 0:02:05.7]} 16. Ne5 {[%clk 0:02:16.3]} 16...
Nf6 {[%clk 0:01:53.8]} 17. f3 {[%clk 0:02:05]} 17... Qxe3+ {[%clk 0:01:50.9]}
18. Qf2 {[%clk 0:01:57.8]} 18... Qxf2+ {[%clk 0:01:37.4]} 19. Kxf2 {[%clk
0:01:58.7]} 19... Rac8 {[%clk 0:01:27.6]} 20. Nc6 {[%clk 0:01:49.2]} 20... h6
{[%clk 0:01:12.7]} 21. g4 {[%clk 0:01:31.2]} 21... Bf4 {[%clk 0:01:04.9]} 22.
Rc2 {[%clk 0:01:25.6]} 22... h5 {[%clk 0:00:29.9]} 23. Bf5 {[%clk 0:01:11.4]}
23... Ra8 {[%clk 0:00:27.2]} 24. Ba3 {[%clk 0:00:52.4]} 24... hxg4 {[%clk
0:00:16.1]} 25. Ne7+ {[%clk 0:00:49.1]} 25... Rxe7 {[%clk 0:00:16.7]} 26. Bxe7
{[%clk 0:00:48.3]} 26... g3+ {[%clk 0:00:17.3]} 27. Ke1 {[%clk 0:00:46.1]} 27...
Re8 {[%clk 0:00:16.2]} 28. Re2 {[%clk 0:00:45.8]} 28... Nh7 {[%clk 0:00:13.2]}
29. Rh1 {[%clk 0:00:32.6]} 29... g6 {[%clk 0:00:10.6]} 30. Bd7 {[%clk
0:00:31.3]} 30... Ra8 {[%clk 0:00:09.7]} 31. Kd1 {[%clk 0:00:29.2]} 31... Ng5
{[%clk 0:00:09.1]} 32. Bxg5 {[%clk 0:00:19.4]} 32... Bxg5 {[%clk 0:00:10]} 33.
Kc2 {[%clk 0:00:18]} 33... Kg7 {[%clk 0:00:09.9]} 34. Re8 {[%clk 0:00:17.2]}
34... Rxe8 {[%clk 0:00:09.2]} 35. Bxe8 {[%clk 0:00:18.1]} 35... Bf6 {[%clk
0:00:09.8]} 36. Kd3 {[%clk 0:00:17.5]} 36... Be7 {[%clk 0:00:08]} 37. a4 {[%clk
0:00:16.6]} 37... Bd6 {[%clk 0:00:08.5]} 38. Re1 {[%clk 0:00:15.2]} 38... a5
{[%clk 0:00:08.6]} 39. Bb5 {[%clk 0:00:14.9]} 39... Bc8 {[%clk 0:00:08.7]} 40.
Bc6 {[%clk 0:00:14.4]} 40... Bf5+ {[%clk 0:00:09.1]} 41. Kd2 {[%clk 0:00:14]}
41... Bb4+ {[%clk 0:00:09.6]} 42. Ke2 {[%clk 0:00:14.2]} 42... Bxe1 {[%clk
0:00:09.7]} 43. Kxe1 {[%clk 0:00:15.1]} 43... Bc2 {[%clk 0:00:09.9]} 44. Bxd5
{[%clk 0:00:13.7]} 44... Bf5 {[%clk 0:00:10.4]} 45. Kd2 {[%clk 0:00:13.1]} 45...
Kf6 {[%clk 0:00:11.1]} 46. Ke3 {[%clk 0:00:13.4]} 46... Be6 {[%clk 0:00:11.8]}
47. Bc4 {[%clk 0:00:11.7]} 47... Bxc4 {[%clk 0:00:11.5]} 48. bxc4 {[%clk
0:00:12.6]} 48... Kf5 {[%clk 0:00:12.1]} 49. Kd3 {[%clk 0:00:11.7]} 49... Kf4
{[%clk 0:00:12.2]} 50. Ke2 {[%clk 0:00:11.9]} 50... g5 {[%clk 0:00:12.6]} 51.
Kd3 {[%clk 0:00:11.7]} 51... f5 {[%clk 0:00:13.2]} 52. c5 {[%clk 0:00:10.5]}
52... g4 {[%clk 0:00:12.7]} 53. fxg4 {[%clk 0:00:10.3]} 53... Kxg4 {[%clk
0:00:13.6]} 54. cxb6 {[%clk 0:00:10.5]} 54... cxb6 {[%clk 0:00:13.6]} 55. d5
{[%clk 0:00:10.9]} 55... f4 {[%clk 0:00:14.2]} 56. Ke4 {[%clk 0:00:11.2]} 56...
f3 {[%clk 0:00:13.8]} 57. gxf3+ {[%clk 0:00:12.1]} 57... Kh3 {[%clk 0:00:14.4]}
58. d6 {[%clk 0:00:12.9]} 58... g2 {[%clk 0:00:14.9]} 59. d7 {[%clk 0:00:13.4]}
59... g1=Q {[%clk 0:00:15.1]} 60. d8=Q {[%clk 0:00:13.7]} 60... Qe1+ {[%clk
0:00:15.7]} 61. Kf4 {[%clk 0:00:13.6]} 61... Qb4+ {[%clk 0:00:15.9]} 62. Ke3
{[%clk 0:00:12.3]} 62... Qxa4 {[%clk 0:00:16.3]} 63. Qh8+ {[%clk 0:00:11]} 63...
Qh4 {[%clk 0:00:16.4]} 64. Qc8+ {[%clk 0:00:10.6]} 64... Kh2 {[%clk 0:00:16.6]}
65. Qc7+ {[%clk 0:00:09.7]} 65... Qg3 {[%clk 0:00:16.5]} 66. Qxb6 {[%clk
0:00:09.8]} 66... Qg1+ {[%clk 0:00:17]} 67. Ke4 {[%clk 0:00:09.8]} 67... Qxb6
{[%clk 0:00:17.9]} 68. f4 {[%clk 0:00:10.6]} 68... a4 {[%clk 0:00:18.8]} 69. f5
{[%clk 0:00:11.5]} 69... a3 {[%clk 0:00:19.7]} 70. f6 {[%clk 0:00:12.3]} 70...
a2 {[%clk 0:00:20.6]} 71. f7 {[%clk 0:00:12.4]} 71... Qb7+ {[%clk 0:00:21.2]}
72. Kd3 {[%clk 0:00:10.9]} 72... Qxf7 {[%clk 0:00:20]} 73. Kc2 {[%clk
0:00:11.8]} 73... a1=Q {[%clk 0:00:19.9]} 74. Kd2 {[%clk 0:00:11]} 74... Qaa2+
{[%clk 0:00:19.8]} 75. Ke3 {[%clk 0:00:10.8]} 75... Qfb3+ {[%clk 0:00:19.8]} 76.
Kd4 {[%clk 0:00:10.9]} 76... Qaa4+ {[%clk 0:00:20.7]} 77. Ke5 {[%clk 0:00:11]}
77... Qbb5+ {[%clk 0:00:21.6]} 78. Kd6 {[%clk 0:00:11.9]} 78... Qaa6+ {[%clk
0:00:22.5]} 79. Kc7 {[%clk 0:00:12.8]} 79... Qbb7+ {[%clk 0:00:23.4]} 0-1

[Event "*** Titled Tuesday Blitz"]
[Site "Chess.com"]
[Date "2020.04.28"]
[Round "9"]
[White "WiktoriaPOL"]
[Black "Karina_Ivanova"]
[Result "0-1"]
[WhiteElo "2022"]
[BlackElo "2183"]
[TimeControl "180+1"]
[EndTime "11:47:52 PDT"]
[Termination "Karina_Ivanova won on time"]

1. c4 {[%clk 0:03:00.9]} 1... Nf6 {[%clk 0:02:58.9]} 2. Nc3 {[%clk 0:03:00.1]}
2... c5 {[%clk 0:02:53.1]} 3. Nf3 {[%clk 0:02:56.9]} 3... e6 {[%clk 0:02:52.3]}
4. e4 {[%clk 0:02:53.1]} 4... Nc6 {[%clk 0:02:49.8]} 5. e5 {[%clk 0:02:47.9]}
5... Ng4 {[%clk 0:02:49.1]} 6. Qe2 {[%clk 0:02:43.5]} 6... Qc7 {[%clk
0:02:47.9]} 7. Nb5 {[%clk 0:02:42]} 7... Qb8 {[%clk 0:02:47.8]} 8. d3 {[%clk
0:02:32.3]} 8... Ncxe5 {[%clk 0:02:34.6]} 9. Nxe5 {[%clk 0:02:25.2]} 9... Nxe5
{[%clk 0:02:34.1]} 10. g3 {[%clk 0:02:03.1]} 10... a6 {[%clk 0:02:29.6]} 11. Nc3
{[%clk 0:02:01.4]} 11... Nc6 {[%clk 0:02:22.2]} 12. Bf4 {[%clk 0:01:58.4]} 12...
Bd6 {[%clk 0:02:19]} 13. Bxd6 {[%clk 0:01:50.4]} 13... Qxd6 {[%clk 0:02:18.6]}
14. Ne4 {[%clk 0:01:49.1]} 14... Qe7 {[%clk 0:02:17.1]} 15. Bg2 {[%clk
0:01:46.8]} 15... O-O {[%clk 0:02:14]} 16. Qe3 {[%clk 0:01:41.5]} 16... d6
{[%clk 0:02:12.4]} 17. O-O {[%clk 0:01:36.3]} 17... Bd7 {[%clk 0:02:11.4]} 18.
Rad1 {[%clk 0:01:31.3]} 18... Nd4 {[%clk 0:02:09.3]} 19. Nc3 {[%clk 0:01:24.3]}
19... Rab8 {[%clk 0:02:04.6]} 20. Nd5 {[%clk 0:01:15.5]} 20... Qd8 {[%clk
0:02:03.2]} 21. Nc3 {[%clk 0:01:07.9]} 21... b5 {[%clk 0:02:02.6]} 22. cxb5
{[%clk 0:01:05.7]} 22... axb5 {[%clk 0:02:02.4]} 23. Ne4 {[%clk 0:01:00.7]}
23... Qe7 {[%clk 0:01:57.8]} 24. f4 {[%clk 0:00:41.4]} 24... d5 {[%clk
0:01:49.3]} 25. Nc3 {[%clk 0:00:34.7]} 25... Qd6 {[%clk 0:01:45.9]} 26. Rc1
{[%clk 0:00:30.8]} 26... b4 {[%clk 0:01:44.7]} 27. Ne2 {[%clk 0:00:29.1]} 27...
Nxe2+ {[%clk 0:01:34.5]} 28. Qxe2 {[%clk 0:00:30]} 28... f6 {[%clk 0:01:26.9]}
29. Rfe1 {[%clk 0:00:26.9]} 29... Rfe8 {[%clk 0:01:23.6]} 30. Qe3 {[%clk
0:00:24.2]} 30... d4 {[%clk 0:01:19.8]} 31. Qe4 {[%clk 0:00:22.7]} 31... e5
{[%clk 0:01:19.2]} 32. fxe5 {[%clk 0:00:20.5]} 32... Rxe5 {[%clk 0:01:15.5]} 33.
Qf3 {[%clk 0:00:19.5]} 33... Rbe8 {[%clk 0:01:13.3]} 34. Rxe5 {[%clk 0:00:15.8]}
34... Qxe5 {[%clk 0:01:13.2]} 35. Qd5+ {[%clk 0:00:15.1]} 35... Qxd5 {[%clk
0:01:11.4]} 36. Bxd5+ {[%clk 0:00:16]} 36... Be6 {[%clk 0:01:11.3]} 37. Rxc5
{[%clk 0:00:15.6]} 37... Bxd5 {[%clk 0:01:09.8]} 38. Rxd5 {[%clk 0:00:15.9]}
38... Re2 {[%clk 0:01:09.5]} 39. b3 {[%clk 0:00:08.1]} 39... Rxa2 {[%clk
0:01:07.7]} 40. Rxd4 {[%clk 0:00:08.3]} 40... Rd2 {[%clk 0:01:07.3]} 41. h3
{[%clk 0:00:05.4]} 41... h5 {[%clk 0:01:02.8]} 42. Kf1 {[%clk 0:00:04.9]} 42...
Kf7 {[%clk 0:00:59]} 43. Ke1 {[%clk 0:00:04.6]} 43... Rg2 {[%clk 0:00:58.3]} 44.
g4 {[%clk 0:00:04.9]} 44... hxg4 {[%clk 0:00:56.2]} 45. hxg4 {[%clk 0:00:05]}
45... Rg1+ {[%clk 0:00:50.3]} 46. Kf2 {[%clk 0:00:04.8]} 46... Rd1 {[%clk
0:00:48.8]} 47. Ke2 {[%clk 0:00:04.2]} 47... Rb1 {[%clk 0:00:45.1]} 48. Rxb4
{[%clk 0:00:04.4]} 48... Kg6 {[%clk 0:00:43.5]} 49. d4 {[%clk 0:00:03.7]} 49...
Kg5 {[%clk 0:00:42.2]} 50. d5 {[%clk 0:00:04.1]} 50... Rb2+ {[%clk 0:00:41.8]}
51. Ke3 {[%clk 0:00:04]} 51... Rb1 {[%clk 0:00:41.4]} 52. Rd4 {[%clk 0:00:02.6]}
52... Rxb3+ {[%clk 0:00:40.3]} 53. Ke2 {[%clk 0:00:02.3]} 53... Rb7 {[%clk
0:00:37.9]} 54. d6 {[%clk 0:00:02.4]} 54... Rd7 {[%clk 0:00:37.9]} 55. Kf3
{[%clk 0:00:02.2]} 55... Kg6 {[%clk 0:00:36.5]} 56. Ke4 {[%clk 0:00:01.6]} 56...
Kf7 {[%clk 0:00:36.4]} 57. Kd5 {[%clk 0:00:02]} 57... g6 {[%clk 0:00:34]} 58.
Kc6 {[%clk 0:00:02.3]} 58... Rd8 {[%clk 0:00:33.4]} 59. d7 {[%clk 0:00:02.3]}
59... f5 {[%clk 0:00:33.4]} 60. Kc7 {[%clk 0:00:02.4]} 60... Rf8 {[%clk
0:00:28]} 61. d8=Q {[%clk 0:00:02.2]} 61... Rxd8 {[%clk 0:00:27.4]} 62. Kxd8
{[%clk 0:00:02.5]} 62... Ke6 {[%clk 0:00:23.2]} 63. Kc7 {[%clk 0:00:02]} 63...
Ke5 {[%clk 0:00:22]} 64. Rc4 {[%clk 0:00:01.8]} 64... f4 {[%clk 0:00:18.2]} 65.
Kd7 {[%clk 0:00:02.1]} 65... f3 {[%clk 0:00:17.8]} 66. Ke7 {[%clk 0:00:02.5]}
66... f2 {[%clk 0:00:17.6]} 67. Rc1 {[%clk 0:00:02.5]} 67... Kf4 {[%clk
0:00:17.6]} 68. Rf1 {[%clk 0:00:02]} 68... g5 {[%clk 0:00:11.8]} 69. Kf6 {[%clk
0:00:01.9]} 69... Kxg4 {[%clk 0:00:09.2]} 0-1

[Event "*** Titled Tuesday Blitz"]
[Site "Chess.com"]
[Date "2020.04.28"]
[Round "9"]
[White "AlexTriapishko"]
[Black "IMRosen"]
[Result "1-0"]
[WhiteElo "2755"]
[BlackElo "2583"]
[TimeControl "180+1"]
[EndTime "11:48:02 PDT"]
[Termination "AlexTriapishko won on time"]

1. d4 {[%clk 0:02:54.7]} 1... d5 {[%clk 0:03:00]} 2. Nc3 {[%clk 0:02:53.3]} 2...
Nf6 {[%clk 0:02:59.2]} 3. Bf4 {[%clk 0:02:53.6]} 3... e6 {[%clk 0:02:57.6]} 4.
Nb5 {[%clk 0:02:52.8]} 4... Na6 {[%clk 0:02:52.5]} 5. e3 {[%clk 0:02:51.1]} 5...
c6 {[%clk 0:02:43.8]} 6. Nc3 {[%clk 0:02:51.2]} 6... Bb4 {[%clk 0:02:33.4]} 7.
Bxa6 {[%clk 0:02:50.8]} 7... bxa6 {[%clk 0:02:33.9]} 8. Ne2 {[%clk 0:02:48.7]}
8... a5 {[%clk 0:02:24.1]} 9. O-O {[%clk 0:02:46.6]} 9... O-O {[%clk 0:02:24.2]}
10. Na4 {[%clk 0:02:45.7]} 10... Ba6 {[%clk 0:02:20.4]} 11. b3 {[%clk
0:02:37.1]} 11... Rc8 {[%clk 0:02:10.3]} 12. Rc1 {[%clk 0:02:31.7]} 12... Ba3
{[%clk 0:02:04.5]} 13. Rb1 {[%clk 0:02:30.7]} 13... Nd7 {[%clk 0:01:59.1]} 14.
Re1 {[%clk 0:02:22.9]} 14... c5 {[%clk 0:01:52.1]} 15. Bd6 {[%clk 0:02:18.5]}
15... Re8 {[%clk 0:01:52.4]} 16. dxc5 {[%clk 0:01:57.7]} 16... Bxc5 {[%clk
0:01:47.8]} 17. Bxc5 {[%clk 0:01:58.6]} 17... Nxc5 {[%clk 0:01:48]} 18. Nxc5
{[%clk 0:01:59.2]} 18... Rxc5 {[%clk 0:01:48.6]} 19. Qd2 {[%clk 0:01:59.5]}
19... Bxe2 {[%clk 0:01:36.4]} 20. Rxe2 {[%clk 0:01:58.1]} 20... Qc7 {[%clk
0:01:37.1]} 21. e4 {[%clk 0:01:51.5]} 21... dxe4 {[%clk 0:01:31.8]} 22. c4
{[%clk 0:01:51.3]} 22... f5 {[%clk 0:01:27.6]} 23. Rd1 {[%clk 0:01:50.8]} 23...
a4 {[%clk 0:01:20.5]} 24. h4 {[%clk 0:01:31.7]} 24... axb3 {[%clk 0:01:14.2]}
25. axb3 {[%clk 0:01:32.6]} 25... Rb8 {[%clk 0:01:14.7]} 26. Re3 {[%clk
0:01:31.7]} 26... a5 {[%clk 0:01:04]} 27. h5 {[%clk 0:01:21.5]} 27... a4 {[%clk
0:00:55.2]} 28. bxa4 {[%clk 0:01:21.1]} 28... Rxc4 {[%clk 0:00:55.5]} 29. Rg3
{[%clk 0:01:18.6]} 29... f4 {[%clk 0:00:30.5]} 30. Rg4 {[%clk 0:01:10.9]} 30...
Rf8 {[%clk 0:00:30.3]} 31. a5 {[%clk 0:01:02.7]} 31... f3 {[%clk 0:00:12.7]} 32.
h6 {[%clk 0:00:52.8]} 32... g6 {[%clk 0:00:09.5]} 33. Qb2 {[%clk 0:00:41.7]}
33... Rc2 {[%clk 0:00:04.2]} 34. Qd4 {[%clk 0:00:27.3]} 34... e3 {[%clk
0:00:04.6]} 35. Qxe3 {[%clk 0:00:25.9]} 35... Re2 {[%clk 0:00:03.9]} 36. Qd4
{[%clk 0:00:21.9]} 36... fxg2 {[%clk 0:00:03.5]} 37. Rxg2 {[%clk 0:00:17.5]}
37... Re5 {[%clk 0:00:01.5]} 38. Ra1 {[%clk 0:00:11.7]} 38... Rd5 {[%clk
0:00:01.8]} 39. Qe3 {[%clk 0:00:09.8]} 39... Rh5 {[%clk 0:00:02]} 40. Qxe6+
{[%clk 0:00:09.1]} 40... Qf7 {[%clk 0:00:01.5]} 41. Qxf7+ {[%clk 0:00:04.5]}
41... Rxf7 {[%clk 0:00:02.4]} 42. Rg3 {[%clk 0:00:05.4]} 42... Rxh6 {[%clk
0:00:02.2]} 43. a6 {[%clk 0:00:05.3]} 43... Ra7 {[%clk 0:00:02.6]} 44. Rb3
{[%clk 0:00:06.1]} 44... g5 {[%clk 0:00:02.9]} 45. Rb8+ {[%clk 0:00:02.2]} 45...
Kf7 {[%clk 0:00:02.6]} 46. Rb7+ {[%clk 0:00:02.2]} 46... Rxb7 {[%clk 0:00:03.3]}
47. axb7 {[%clk 0:00:03.1]} 47... Rb6 {[%clk 0:00:03.8]} 48. Ra7 {[%clk
0:00:03.9]} 48... Kg6 {[%clk 0:00:04.2]} 49. Ra6 {[%clk 0:00:04.2]} 49... Rxa6
{[%clk 0:00:04.5]} 50. b8=Q {[%clk 0:00:04.6]} 50... Rf6 {[%clk 0:00:05.3]} 51.
Qg8+ {[%clk 0:00:04.2]} 51... Kh6 {[%clk 0:00:05]} 52. Kg2 {[%clk 0:00:05.1]}
52... Rf4 {[%clk 0:00:05.6]} 53. Kg3 {[%clk 0:00:04.8]} 53... Rh4 {[%clk
0:00:04.6]} 54. Qf7 {[%clk 0:00:04.2]} 54... Rf4 {[%clk 0:00:04.2]} 55. Qe6+
{[%clk 0:00:04.7]} 55... Kh5 {[%clk 0:00:03.5]} 56. Qe7 {[%clk 0:00:04.4]} 56...
Kg6 {[%clk 0:00:03.3]} 57. Qe8+ {[%clk 0:00:04.5]} 57... Kg7 {[%clk 0:00:03.2]}
58. f3 {[%clk 0:00:04.8]} 58... h6 {[%clk 0:00:03.5]} 59. Qe5+ {[%clk
0:00:05.3]} 59... Kg6 {[%clk 0:00:04.1]} 60. Kf2 {[%clk 0:00:05.8]} 60... Kf7
{[%clk 0:00:03.2]} 61. Qh8 {[%clk 0:00:05.5]} 61... Kg6 {[%clk 0:00:03.8]} 62.
Qg8+ {[%clk 0:00:06]} 62... Kf6 {[%clk 0:00:03.7]} 63. Qh7 {[%clk 0:00:06.1]}
63... Rh4 {[%clk 0:00:02.8]} 64. Kg3 {[%clk 0:00:06.6]} 64... Ke6 {[%clk
0:00:02.5]} 65. Qg6+ {[%clk 0:00:06.3]} 65... Ke5 {[%clk 0:00:02.3]} 66. f4+
{[%clk 0:00:06.7]} 66... Rxf4 {[%clk 0:00:02.3]} 67. Qxh6 {[%clk 0:00:07.3]}
67... Kf5 {[%clk 0:00:02.4]} 68. Qh7+ {[%clk 0:00:07.4]} 68... Kf6 {[%clk
0:00:02.7]} 69. Qg8 {[%clk 0:00:07.9]} 69... Kf5 {[%clk 0:00:02.7]} 70. Qf7+
{[%clk 0:00:07.6]} 70... Ke5 {[%clk 0:00:03.4]} 71. Qg6 {[%clk 0:00:08.3]} 71...
Rd4 {[%clk 0:00:01.7]} 72. Qxg5+ {[%clk 0:00:08.6]} 72... Ke4 {[%clk 0:00:02.3]}
73. Qf4+ {[%clk 0:00:09]} 73... Kd5 {[%clk 0:00:02.6]} 74. Qc7 {[%clk
0:00:08.9]} 74... Ke4 {[%clk 0:00:01.8]} 75. Kf2 {[%clk 0:00:08.7]} 75... Rd5
{[%clk 0:00:01.2]} 76. Qe7+ {[%clk 0:00:08.3]} 1-0

[Event "*** Titled Tuesday Blitz"]
[Site "Chess.com"]
[Date "2020.04.28"]
[Round "9"]
[White "LionTheLeon_06"]
[Black "Batica1984"]
[Result "1-0"]
[WhiteElo "2681"]
[BlackElo "2793"]
[TimeControl "180+1"]
[EndTime "11:48:16 PDT"]
[Termination "LionTheLeon_06 won by checkmate"]

1. d4 {[%clk 0:03:00.9]} 1... Nf6 {[%clk 0:02:59.3]} 2. c4 {[%clk 0:03:00.9]}
2... c5 {[%clk 0:02:55.4]} 3. d5 {[%clk 0:03:00.2]} 3... b5 {[%clk 0:02:55.5]}
4. Qc2 {[%clk 0:02:59.9]} 4... bxc4 {[%clk 0:02:51.3]} 5. e4 {[%clk 0:02:59.8]}
5... d6 {[%clk 0:02:51.1]} 6. Bxc4 {[%clk 0:02:59.6]} 6... Nbd7 {[%clk
0:02:50.6]} 7. Nf3 {[%clk 0:02:57.9]} 7... g6 {[%clk 0:02:50.8]} 8. O-O {[%clk
0:02:57.7]} 8... Bg7 {[%clk 0:02:51]} 9. Nc3 {[%clk 0:02:54.3]} 9... O-O {[%clk
0:02:50.7]} 10. Bf4 {[%clk 0:02:49.8]} 10... Ng4 {[%clk 0:02:41.5]} 11. b3
{[%clk 0:02:39.5]} 11... Nge5 {[%clk 0:02:39.5]} 12. Nxe5 {[%clk 0:02:39.3]}
12... Nxe5 {[%clk 0:02:39.1]} 13. Be3 {[%clk 0:02:34.3]} 13... f5 {[%clk
0:02:33.1]} 14. exf5 {[%clk 0:02:27.6]} 14... Bxf5 {[%clk 0:02:31.1]} 15. Qd2
{[%clk 0:02:26.4]} 15... Nxc4 {[%clk 0:01:56.7]} 16. bxc4 {[%clk 0:02:24.3]}
16... Qa5 {[%clk 0:01:56.5]} 17. Rac1 {[%clk 0:02:19]} 17... Qb4 {[%clk
0:01:56]} 18. Bg5 {[%clk 0:02:12.6]} 18... Rf7 {[%clk 0:01:41.7]} 19. Rfe1
{[%clk 0:01:49.7]} 19... Qxc4 {[%clk 0:01:31.3]} 20. Bxe7 {[%clk 0:01:46.2]}
20... Qd4 {[%clk 0:01:13.7]} 21. Qxd4 {[%clk 0:01:10.7]} 21... cxd4 {[%clk
0:01:13.1]} 22. Nb5 {[%clk 0:01:11.1]} 22... d3 {[%clk 0:01:12]} 23. Rcd1 {[%clk
0:01:04.8]} 23... Re8 {[%clk 0:01:01.8]} 24. Bxd6 {[%clk 0:01:01.7]} 24... Rxe1+
{[%clk 0:00:59.2]} 25. Rxe1 {[%clk 0:01:01.9]} 25... Rb7 {[%clk 0:00:55.5]} 26.
a4 {[%clk 0:00:34.1]} 26... a6 {[%clk 0:00:52.2]} 27. Nc7 {[%clk 0:00:13.1]}
27... d2 {[%clk 0:00:29.8]} 28. Re8+ {[%clk 0:00:09.4]} 28... Kf7 {[%clk
0:00:25.8]} 29. Re7+ {[%clk 0:00:09.4]} 29... Kf6 {[%clk 0:00:25.5]} 30. Ne8+
{[%clk 0:00:09.1]} 30... Kg5 {[%clk 0:00:25]} 31. h4+ {[%clk 0:00:09.1]} 31...
Kxh4 {[%clk 0:00:18.6]} 32. Rxb7 {[%clk 0:00:04.7]} 32... d1=Q+ {[%clk
0:00:18.1]} 33. Kh2 {[%clk 0:00:05.3]} 33... Qxd5 {[%clk 0:00:07.2]} 34. Rxg7
{[%clk 0:00:05.2]} 34... h5 {[%clk 0:00:06.2]} 35. Bg3+ {[%clk 0:00:04.1]} 35...
Kg5 {[%clk 0:00:05.5]} 36. f4+ {[%clk 0:00:03.4]} 36... Kh6 {[%clk 0:00:05.8]}
37. Rh7+ {[%clk 0:00:03.9]} 37... Kxh7 {[%clk 0:00:05.6]} 38. Nf6+ {[%clk
0:00:04.6]} 38... Kg7 {[%clk 0:00:06]} 39. Nxd5 {[%clk 0:00:05.5]} 39... a5
{[%clk 0:00:06.3]} 40. Be1 {[%clk 0:00:04]} 40... Bd7 {[%clk 0:00:06.4]} 41. Nb6
{[%clk 0:00:04.4]} 41... Bc6 {[%clk 0:00:05.8]} 42. Bxa5 {[%clk 0:00:04.7]}
42... Kf6 {[%clk 0:00:06.1]} 43. Bc3+ {[%clk 0:00:05.6]} 43... Kf5 {[%clk
0:00:06.2]} 44. g3 {[%clk 0:00:06]} 44... Kg4 {[%clk 0:00:06.2]} 45. a5 {[%clk
0:00:06.3]} 45... h4 {[%clk 0:00:06.7]} 46. Be1 {[%clk 0:00:06.3]} 46... hxg3+
{[%clk 0:00:06]} 47. Bxg3 {[%clk 0:00:07.2]} 47... g5 {[%clk 0:00:06.6]} 48.
fxg5 {[%clk 0:00:06.7]} 48... Kxg5 {[%clk 0:00:07]} 49. a6 {[%clk 0:00:07.2]}
49... Kf5 {[%clk 0:00:07.5]} 50. a7 {[%clk 0:00:07.5]} 50... Ke6 {[%clk
0:00:07.9]} 51. Kg1 {[%clk 0:00:06.6]} 51... Kf5 {[%clk 0:00:07.4]} 52. Kf2
{[%clk 0:00:06.4]} 52... Ke4 {[%clk 0:00:07.7]} 53. Ke2 {[%clk 0:00:05.5]} 53...
Kd4 {[%clk 0:00:08.2]} 54. a8=Q {[%clk 0:00:05.2]} 54... Bxa8 {[%clk 0:00:07.5]}
55. Nxa8 {[%clk 0:00:06.1]} 55... Kc5 {[%clk 0:00:07.8]} 56. Nc7 {[%clk
0:00:06.6]} 56... Kc6 {[%clk 0:00:08.2]} 57. Kd3 {[%clk 0:00:06.8]} 57... Kc5
{[%clk 0:00:07.9]} 58. Be5 {[%clk 0:00:06.3]} 58... Kc6 {[%clk 0:00:08]} 59. Kd4
{[%clk 0:00:06.7]} 59... Kd7 {[%clk 0:00:08.3]} 60. Kd5 {[%clk 0:00:07]} 60...
Ke7 {[%clk 0:00:08.7]} 61. Ne6 {[%clk 0:00:07]} 61... Kf7 {[%clk 0:00:08.9]} 62.
Nf4 {[%clk 0:00:07.4]} 62... Ke7 {[%clk 0:00:09.2]} 63. Bd6+ {[%clk 0:00:07.6]}
63... Kf7 {[%clk 0:00:09.6]} 64. Ke5 {[%clk 0:00:07.6]} 64... Kg7 {[%clk
0:00:10]} 65. Ke6 {[%clk 0:00:07.8]} 65... Kh6 {[%clk 0:00:10.1]} 66. Kf6 {[%clk
0:00:08.1]} 66... Kh7 {[%clk 0:00:10.5]} 67. Ng6 {[%clk 0:00:07.1]} 67... Kh6
{[%clk 0:00:10.7]} 68. Nf4 {[%clk 0:00:07.3]} 68... Kh7 {[%clk 0:00:10.9]} 69.
Bf8 {[%clk 0:00:06.9]} 69... Kg8 {[%clk 0:00:11]} 70. Bh6 {[%clk 0:00:06.5]}
70... Kh7 {[%clk 0:00:11.4]} 71. Bg7 {[%clk 0:00:06.7]} 71... Kg8 {[%clk
0:00:11.5]} 72. Bh6 {[%clk 0:00:04.6]} 72... Kh7 {[%clk 0:00:11.8]} 73. Bg5
{[%clk 0:00:04.8]} 73... Kg8 {[%clk 0:00:12.2]} 74. Ne6 {[%clk 0:00:05]} 74...
Kh7 {[%clk 0:00:12.6]} 75. Kf7 {[%clk 0:00:05.3]} 75... Kh8 {[%clk 0:00:12.4]}
76. Ng7 {[%clk 0:00:04.5]} 76... Kh7 {[%clk 0:00:12.5]} 77. Ne8 {[%clk
0:00:03.8]} 77... Kh8 {[%clk 0:00:12.8]} 78. Ng7 {[%clk 0:00:02.8]} 78... Kh7
{[%clk 0:00:13.2]} 79. Bf4 {[%clk 0:00:02.5]} 79... Kh8 {[%clk 0:00:13.9]} 80.
Ne6 {[%clk 0:00:01.2]} 80... Kh7 {[%clk 0:00:14.4]} 81. Nf8+ {[%clk 0:00:01.5]}
81... Kh8 {[%clk 0:00:14.4]} 82. Be5# {[%clk 0:00:02.2]} 1-0